bitfinex/quotes_SOLUSD_20250602
["timestamp","ask_amount","ask_price","bid_price","bid_amount"]
[1748827194054,148.9,158.54,158.52,20.26025571]
[1748827194260,148.9,158.54,158.53,13.95190346]
[1748827194961,148.9,158.54,158.53,20.25985779]
[1748827195169,167.54964886,158.54,158.53,13.95190346]
[1748827197668,167.54964886,158.54,158.5,6.30914826]
[1748827197966,167.54964886,158.54,158.52,13.95190346]
[1748827198363,18.64964886,158.53,158.52,13.95190346]
[1748827200370,18.64964886,158.53,158.52,20.26025571]
[1748827201059,58.87444886,158.53,158.48,6.30994447]
[1748827201388,18.64964886,158.51,158.48,13.95190346]
[1748827201590,18.64964886,158.49,158.46,6.31074088]
[1748827201770,18.64964886,158.49,158.47,13.95190346]
[1748827202157,18.64964886,158.49,158.48,13.95190346]
[1748827202557,38.68,158.5,158.48,20.26184793]
[1748827202757,18.64964886,158.52,158.49,13.95190346]
[1748827202970,57.32964886,158.52,158.51,13.95190346]
[1748827203168,18.64964886,158.52,158.51,13.95190346]
[1748827203372,148.9,158.54,158.51,13.95190346]
[1748827203373,10.04,158.55,158.51,13.95190346]
[1748827203574,10.04,158.55,158.54,13.95190346]
[1748827203774,67.36964886,158.55,158.54,13.95190346]
[1748827204471,28.68964886,158.55,158.54,13.95190346]
[1748827204676,28.68964886,158.55,158.54,20.25945991]
[1748827205977,28.68964886,158.55,158.54,13.95190346]
[1748827207479,28.68964886,158.55,158.54,20.25945991]
[1748827208306,28.68964886,158.55,158.51,6.30875023]
[1748827208522,18.64964886,158.54,158.51,13.95190346]
[1748827208679,18.64964886,158.54,158.52,13.95190346]
[1748827209802,18.64964886,158.54,158.53,13.95190346]
[1748827210397,18.64964886,158.54,158.51,13.95190346]
[1748827210785,18.64964886,158.52,158.51,13.95190346]
[1748827211306,18.64964886,158.52,158.5,6.30901534]
[1748827211486,18.64964886,158.5,158.44,15.77812749]
[1748827211695,57.30964886,158.5,158.47,13.95190346]
[1748827212523,57.30964886,158.5,158.47,20.26204528]
[1748827213217,57.30964886,158.5,158.48,13.95190346]
[1748827214382,57.30964886,158.5,158.49,13.95190346]
[1748827214815,57.30964886,158.5,158.48,6.30974817]
[1748827215112,57.30964886,158.5,158.48,20.26165163]
[1748827216421,57.30964886,158.5,158.48,13.95190346]
[1748827217158,57.30964886,158.5,158.47,13.95190346]
[1748827218088,57.30964886,158.5,158.47,20.26216501]
[1748827219111,18.64964886,158.48,158.46,13.95190346]
[1748827219487,18.64964886,158.48,158.47,13.95190346]
[1748827222125,18.64964886,158.48,158.47,20.26224611]
[1748827223304,148.9,158.49,158.46,13.95190346]
[1748827223305,18.64964886,158.49,158.46,13.95190346]
[1748827224719,18.64964886,158.49,158.47,13.95190346]
[1748827226704,18.64964886,158.49,158.48,13.95190346]
[1748827229321,167.54964886,158.49,158.48,13.95190346]
[1748827230515,206.22964886,158.49,158.48,13.95190346]
[1748827231529,206.22964886,158.49,158.44,6.31153749]
[1748827231821,206.22964886,158.49,158.47,13.95190346]
[1748827232194,206.22964886,158.49,158.48,13.95190346]
[1748827236214,206.22964886,158.49,158.47,20.26195983]
[1748827237122,206.22964886,158.49,158.47,13.95190346]
[1748827237305,206.22964886,158.49,158.46,6.31068339]
[1748827237506,206.22964886,158.49,158.47,13.95190346]
[1748827238335,206.22964886,158.49,158.47,20.2621948]
[1748827241323,206.22964886,158.49,158.47,13.95190346]
[1748827241523,206.22964886,158.49,158.47,20.26223684]
[1748827243504,206.22964886,158.49,158.48,13.95190346]
[1748827244513,206.22964886,158.49,158.44,26.0]
[1748827244707,206.22964886,158.49,158.47,13.95190346]
[1748827247022,148.9,158.48,158.47,13.95190346]
[1748827249626,148.9,158.48,158.47,20.26224611]
[1748827249824,150.4934,158.56,158.47,60.21414957]
[1748827250030,18.59207499,158.57,158.55,13.95190346]
[1748827250031,22.51977499,158.57,158.55,13.95190346]
[1748827250315,12.47977499,158.57,158.56,13.95190346]
[1748827250518,12.47977499,158.57,158.56,20.2586643]
[1748827250717,31.12942385,158.57,158.56,20.2586643]
[1748827251439,69.80942385,158.57,158.56,13.95190346]
[1748827251939,31.12942385,158.57,158.56,13.95190346]
[1748827252238,31.12942385,158.57,158.56,20.2586643]
[1748827252558,12.47977499,158.57,158.56,20.2586643]
[1748827252847,38.68,158.59,158.56,34.21056776]
[1748827253024,57.32964886,158.59,158.58,13.95190346]
[1748827253935,11.6334,158.61,158.58,13.95190346]
[1748827254142,57.30964886,158.6,158.59,13.95190346]
[1748827255239,18.64964886,158.6,158.59,20.25747127]
[1748827255436,10.04,158.61,158.59,20.25747127]
[1748827255437,18.64964886,158.61,158.59,20.25747127]
[1748827255647,148.9,158.62,158.6,13.95190346]
[1748827255829,167.54964886,158.62,158.61,13.95190346]
[1748827256450,167.54964886,158.62,158.61,20.25667617]
[1748827258239,11.5697,158.65,158.61,20.25667617]
[1748827258468,18.64964886,158.64,158.61,6.30477271]
[1748827259639,18.64964886,158.64,158.63,13.95190346]
[1748827260038,18.64964886,158.64,158.62,13.95190346]
[1748827261146,24.95338797,158.64,158.57,32.3060574]
[1748827261363,148.9,158.63,158.61,13.95190346]
[1748827261663,38.64,158.62,158.61,13.95190346]
[1748827263749,38.64,158.62,158.61,20.25667617]
[1748827264454,38.64,158.62,158.61,13.95190346]
[1748827265165,38.64,158.62,158.61,20.25667617]
[1748827265445,148.9,158.63,158.61,20.25667617]
[1748827265625,18.64964886,158.67,158.62,27.90380692]
[1748827265826,18.64964886,158.67,158.61,22.06670449]
[1748827265827,18.64964886,158.67,158.66,13.95190346]
[1748827266946,57.28964886,158.67,158.66,13.95190346]
[1748827267949,18.64964886,158.67,158.66,20.25468929]
[1748827270244,48.68,158.69,158.66,20.25468929]
[1748827270439,67.32964886,158.69,158.68,13.95190346]
[1748827270638,28.68964886,158.69,158.68,13.95190346]
[1748827270846,18.64964886,158.69,158.68,20.25389488]
[1748827271046,18.64964886,158.69,158.68,13.95190346]
[1748827277965,18.64964886,158.69,158.68,20.25389488]
[1748827278766,18.64964886,158.72,158.68,20.25389488]
[1748827279065,18.64964886,158.72,158.71,13.95190346]
[1748827279663,18.64964886,158.72,158.71,20.25270366]
[1748827280176,10.02,158.73,158.71,6.3008002]
[1748827280343,28.66964886,158.73,158.72,13.95190346]
[1748827281439,18.64964886,158.72,158.71,13.95190346]
[1748827282776,28.66964886,158.73,158.71,13.95190346]
[1748827285458,148.9,158.72,158.71,13.95190346]
[1748827286770,18.64964886,158.71,158.7,13.95190346]
[1748827289174,18.64964886,158.71,158.7,20.25310068]
[1748827290846,18.64964886,158.71,158.7,13.95190346]
[1748827291256,18.64964886,158.71,158.69,13.95190346]
[1748827291460,18.64964886,158.71,158.7,13.95190346]
[1748827293168,18.64964886,158.71,158.7,20.25310068]
[1748827295176,148.9,158.72,158.7,20.25310068]
[1748827295381,148.9,158.72,158.71,13.95190346]
[1748827297279,148.9,158.72,158.71,20.25270366]
[1748827301686,148.9,158.76,158.74,26.0]
[1748827301886,148.9,158.76,158.75,13.95190346]
[1748827302284,16.66666666,158.8,158.75,13.95190346]
[1748827302464,16.66666666,158.8,158.79,13.95190346]
[1748827302668,35.31631552,158.8,158.79,13.95190346]
[1748827303389,16.66666666,158.8,158.79,13.95190346]
[1748827303687,16.66666666,158.8,158.79,20.24952925]
[1748827304673,16.66666666,158.8,158.79,34.20143271]
[1748827305870,16.66666666,158.8,158.79,20.24952925]
[1748827306071,8.33333333,158.8,158.79,20.24952925]
[1748827308188,8.33333333,158.8,158.79,34.20143271]
[1748827308982,148.9,158.85,158.79,34.20143271]
[1748827308983,167.54964886,158.85,158.84,13.95190346]
[1748827309191,48.6,158.86,158.84,13.95190346]
[1748827309383,67.24964886,158.86,158.85,13.95190346]
[1748827309697,28.66964886,158.86,158.85,13.95190346]
[1748827310289,28.66964886,158.86,158.85,20.24715054]
[1748827310678,18.64964886,158.88,158.85,20.24715054]
[1748827310880,18.64964886,158.89,158.87,13.95190346]
[1748827311087,18.64964886,158.89,158.88,13.95190346]
[1748827312391,18.64964886,158.89,158.88,20.24596186]
[1748827313203,18.64964886,158.89,158.88,13.95190346]
[1748827313505,18.64964886,158.89,158.88,20.24596186]
[1748827313694,18.64964886,158.89,158.88,6.2940584]
[1748827313901,18.64964886,158.89,158.88,13.95190346]
[1748827315197,18.64964886,158.89,158.88,20.24596186]
[1748827316509,18.64964886,158.89,158.88,13.95190346]
[1748827318610,18.64964886,158.89,158.88,20.24596186]
[1748827319613,10.0,158.9,158.88,20.24596186]
[1748827319815,18.64964886,158.91,158.89,13.95190346]
[1748827320021,18.64964886,158.93,158.9,13.95190346]
[1748827320199,18.64964886,158.93,158.91,13.95190346]
[1748827320913,32.60155232,158.93,158.88,6.2940584]
[1748827321215,18.64964886,158.93,158.89,13.95190346]
[1748827322402,18.64964886,158.93,158.9,13.95190346]
[1748827322928,18.64964886,158.93,158.91,6.29287017]
[1748827323397,18.64964886,158.93,158.9,20.24503089]
[1748827323593,32.60155232,158.93,158.87,26.0]
[1748827323796,32.60155232,158.93,158.88,13.95190346]
[1748827324008,32.60155232,158.93,158.88,20.2458947]
[1748827325020,32.60155232,158.93,158.89,13.95190346]
[1748827325206,32.60155232,158.93,158.88,6.29399124]
[1748827325207,13.95190346,158.92,158.88,13.95190346]
[1748827325406,24.94178046,158.93,158.85,32.29524708]
[1748827325407,13.95190346,158.91,158.85,32.29524708]
[1748827325589,13.95190346,158.91,158.87,13.95190346]
[1748827325590,32.60155232,158.91,158.87,13.95190346]
[1748827326418,32.60155232,158.91,158.87,20.24613317]
[1748827327492,18.64964886,158.9,158.87,13.95190346]
[1748827328302,32.60155232,158.91,158.87,13.95190346]
[1748827329711,148.9,158.9,158.87,20.24608319]
[1748827330021,187.44,158.9,158.87,20.24608319]
[1748827330195,201.39190346,158.9,158.87,6.29417973]
[1748827330906,187.44,158.9,158.88,13.95190346]
[1748827331100,18.64964886,158.88,158.87,20.24608319]
[1748827332197,18.64964886,158.88,158.87,6.29417973]
[1748827333314,18.64964886,158.88,158.86,20.24661079]
[1748827333706,18.64964886,158.88,158.87,13.95190346]
[1748827333914,18.64964886,158.88,158.87,20.24635804]
[1748827334411,148.9,158.89,158.87,20.24635804]
[1748827337612,148.9,158.89,158.88,13.95190346]
[1748827338508,148.9,158.89,158.88,20.24596186]
[1748827338918,28.64964886,158.94,158.88,35.98110788]
[1748827339244,28.64964886,158.94,158.92,13.95190346]
[1748827339416,150.5238,158.95,158.92,13.95190346]
[1748827340619,150.5238,158.95,158.93,6.29207827]
[1748827341115,148.9,158.95,158.93,6.29207827]
[1748827342529,148.9,158.95,158.92,6.29234586]
[1748827343227,18.64964886,158.94,158.91,20.24468578]
[1748827343435,18.64964886,158.94,158.91,6.29278232]
[1748827343742,32.60155232,158.94,158.91,6.29278232]
[1748827343930,18.64964886,158.92,158.89,13.95190346]
[1748827344243,32.60155232,158.92,158.89,6.29352989]
[1748827344625,167.54964886,158.92,158.89,6.29352989]
[1748827344935,148.9,158.92,158.9,13.95190346]
[1748827345236,148.9,158.92,158.9,20.24499923]
[1748827345737,18.64964886,158.91,158.87,6.29445458]
[1748827345916,18.64964886,158.91,158.88,13.95190346]
[1748827346418,18.64964886,158.91,158.89,13.95190346]
[1748827347313,18.64964886,158.91,158.9,6.2932662]
[1748827347631,148.9,158.92,158.9,6.2932662]
[1748827349829,148.9,158.92,158.89,20.24548305]
[1748827349830,18.64964886,158.91,158.89,20.24548305]
[1748827350015,18.64964886,158.91,158.86,41.73631662]
[1748827350212,57.16964886,158.91,158.87,13.95190346]
[1748827350441,57.16964886,158.91,158.87,20.24635804]
[1748827352032,71.12155232,158.91,158.87,20.24635804]
[1748827352429,57.16964886,158.91,158.87,20.24635804]
[1748827352814,57.16964886,158.91,158.88,13.95190346]
[1748827353629,38.52,158.91,158.89,6.29366228]
[1748827353824,38.52,158.91,158.89,20.24556574]
[1748827354925,148.9,158.92,158.89,20.24556574]
[1748827356647,187.42,158.92,158.89,6.29366228]
[1748827357527,18.64964886,158.91,158.89,6.29366228]
[1748827358642,187.42,158.92,158.89,20.24556574]
[1748827361052,9.98,158.93,158.91,13.95190346]
[1748827361226,18.64964886,158.95,158.91,13.95190346]
[1748827362856,18.64964886,158.95,158.92,6.2924742]
[1748827363040,18.64964886,158.93,158.91,6.29279174]
[1748827365350,18.64964886,158.93,158.9,6.2932662]
[1748827366621,18.64964886,158.93,158.9,20.24516966]
[1748827366845,18.64964886,158.93,158.91,13.95190346]
[1748827367054,18.64964886,158.93,158.9,20.24516966]
[1748827367836,148.9,158.94,158.92,13.95190346]
[1748827368148,148.9,158.94,158.91,13.95190346]
[1748827368327,40.1381,158.96,158.91,13.95190346]
[1748827368524,40.1381,158.96,158.92,13.95190346]
[1748827368729,40.1381,158.96,158.93,6.29207827]
[1748827369656,54.09000346,158.96,158.93,6.29207827]
[1748827369952,18.64964886,158.95,158.9,15.73316551]
[1748827370152,32.60155232,158.95,158.9,13.95190346]
[1748827370347,18.64964886,158.93,158.9,20.24516966]
[1748827370533,32.60155232,158.93,158.9,6.2932662]
[1748827370732,32.60155232,158.93,158.89,6.29366228]
[1748827371131,71.12155232,158.93,158.89,6.29366228]
[1748827372229,71.12155232,158.93,158.89,13.95190346]
[1748827373257,71.12155232,158.93,158.9,6.2932662]
[1748827374637,57.16964886,158.93,158.9,6.2932662]
[1748827375559,71.12155232,158.93,158.9,6.2932662]
[1748827376945,57.16964886,158.93,158.9,6.2932662]
[1748827380256,57.16964886,158.93,158.9,13.95190346]
[1748827380455,57.16964886,158.93,158.89,29.68561927]
[1748827380960,187.42,158.94,158.91,13.95190346]
[1748827381152,148.9,158.94,158.91,13.95190346]
[1748827382558,148.9,158.94,158.92,6.2924742]
[1748827386679,71.10155232,158.96,158.92,6.2924742]
[1748827387855,32.60155232,158.96,158.92,6.2924742]
[1748827388054,71.10155232,158.96,158.92,20.24437766]
[1748827388260,57.14964886,158.96,158.92,20.24437766]
[1748827388655,13.95190346,158.95,158.92,6.2924742]
[1748827390479,71.10155232,158.96,158.92,6.2924742]
[1748827391983,148.9,158.95,158.92,6.2924742]
[1748827392664,187.4,158.95,158.92,6.2924742]
[1748827394678,187.4,158.95,158.92,35.97556316]
[1748827395659,187.4,158.95,158.92,22.0236597]
[1748827396065,187.4,158.95,158.92,35.97556316]
[1748827396569,187.4,158.95,158.92,6.2924742]
[1748827396773,187.4,158.95,158.92,20.24437766]
[1748827399669,187.4,158.95,158.92,6.2924742]
[1748827400689,18.64964886,158.94,158.91,6.29287017]
[1748827402380,27.56515216,158.94,158.91,6.29287017]
[1748827402590,18.64964886,158.94,158.91,6.29287017]
[1748827403978,187.4,158.95,158.92,8.9155033]
[1748827405267,187.4,158.95,158.93,6.29207827]
[1748827407575,187.4,158.95,158.92,6.2924742]
[1748827409097,201.32801886,158.95,158.92,6.2924742]
[1748827409891,18.64964886,158.94,158.92,6.2924742]
[1748827410796,18.64964886,158.94,158.91,6.29287017]
[1748827411094,32.57766772,158.94,158.91,6.29287017]
[1748827411602,18.64964886,158.92,158.9,6.29322332]
[1748827412686,18.64964886,158.92,158.89,6.29366228]
[1748827412880,32.57766772,158.92,158.89,6.29366228]
[1748827413086,71.07766772,158.92,158.89,6.29366228]
[1748827413282,38.5,158.92,158.89,20.22168114]
[1748827413487,38.5,158.92,158.9,13.92801886]
[1748827413781,38.5,158.92,158.89,35.95583684]
[1748827413986,187.4,158.93,158.89,35.95583684]
[1748827414800,148.9,158.93,158.89,35.95583684]
[1748827415000,148.9,158.93,158.91,13.92801886]
[1748827415703,148.9,158.93,158.9,13.92801886]
[1748827417501,148.9,158.93,158.89,6.29366228]
[1748827417502,18.64964886,158.92,158.89,6.29366228]
[1748827417803,57.14964886,158.92,158.89,6.29366228]
[1748827418787,71.07766772,158.92,158.89,6.29366228]
[1748827420004,71.07766772,158.92,158.88,6.2940584]
[1748827420886,13.92801886,158.89,158.87,6.29436239]
[1748827421084,18.64964886,158.9,158.87,6.29436239]
[1748827421303,32.57766772,158.9,158.87,6.29436239]
[1748827422096,32.57766772,158.9,158.85,39.92801886]
[1748827422097,32.57766772,158.9,158.86,6.29485081]
[1748827422411,38.5,158.89,158.86,6.29485081]
[1748827422618,13.92801886,158.87,158.84,6.29564341]
[1748827422817,13.92801886,158.85,158.84,6.29564341]
[1748827423124,32.57766772,158.85,158.84,6.29564341]
[1748827423627,18.64964886,158.84,158.8,15.74229192]
[1748827423802,18.64964886,158.84,158.81,6.29683269]
[1748827423803,13.92801886,158.83,158.81,6.29683269]
[1748827424392,13.92801886,158.83,158.79,6.29762579]
[1748827424593,52.42801886,158.83,158.79,6.29762579]
[1748827425890,32.57766772,158.82,158.79,6.29762579]
[1748827427115,13.92801886,158.81,158.79,6.29762579]
[1748827427706,13.92801886,158.81,158.78,6.29802242]
[1748827427907,32.57766772,158.82,158.78,6.29802242]
[1748827430099,13.92801886,158.81,158.78,6.29802242]
[1748827430710,13.92801886,158.79,158.78,6.29802242]
[1748827430912,32.57766772,158.79,158.75,6.29921259]
[1748827431098,32.57766772,158.77,158.75,6.29921259]
[1748827431515,71.09766772,158.77,158.75,6.29921259]
[1748827432102,71.09766772,158.77,158.72,13.92801886]
[1748827432317,71.09766772,158.77,158.73,6.3000063]
[1748827432898,13.92801886,158.76,158.73,6.3000063]
[1748827433098,18.64964886,158.75,158.73,6.3000063]
[1748827433626,18.64964886,158.75,158.71,41.75132617]
[1748827433824,18.64964886,158.75,158.72,13.92801886]
[1748827434320,38.52,158.77,158.74,13.92801886]
[1748827434622,38.52,158.77,158.75,13.92801886]
[1748827434828,167.54964886,158.78,158.75,13.92801886]
[1748827435330,167.54964886,158.78,158.76,6.29881582]
[1748827435900,32.57766772,158.77,158.74,6.29925279]
[1748827436601,18.64964886,158.75,158.74,6.29925279]
[1748827437410,18.64964886,158.75,158.72,20.22842208]
[1748827437607,18.64964886,158.75,158.72,6.30040322]
[1748827437924,18.64964886,158.75,158.72,20.22842208]
[1748827441013,148.9,158.78,158.74,13.92801886]
[1748827441214,148.9,158.78,158.72,22.05141128]
[1748827441215,148.9,158.78,158.76,13.92801886]
[1748827441414,28.62964886,158.79,158.77,13.92801886]
[1748827441611,28.62964886,158.79,158.78,13.92801886]
[1748827442125,28.62964886,158.79,158.78,6.29802242]
[1748827442331,18.64964886,158.79,158.78,6.29802242]
[1748827444030,18.64964886,158.78,158.75,15.74737949]
[1748827444342,18.64964886,158.78,158.74,20.22762828]
[1748827445036,18.64964886,158.78,158.75,13.92801886]
[1748827445214,18.64964886,158.78,158.76,13.92801886]
[1748827445416,38.52,158.79,158.76,13.92801886]
[1748827445618,38.52,158.79,158.77,13.92801886]
[1748827446537,57.16964886,158.79,158.78,6.29802242]
[1748827446706,18.64964886,158.81,158.78,20.22604128]
[1748827446907,187.42,158.82,158.79,13.92801886]
[1748827447344,148.9,158.82,158.79,13.92801886]
[1748827447514,148.9,158.82,158.78,35.97109733]
[1748827447834,18.64964886,158.81,158.78,35.97109733]
[1748827448136,32.57766772,158.81,158.78,6.29802242]
[1748827448813,18.64964886,158.81,158.78,6.29802242]
[1748827450537,18.64964886,158.81,158.77,6.29841909]
[1748827450747,18.64964886,158.81,158.77,20.22643795]
[1748827453242,18.64964886,158.81,158.78,13.92801886]
[1748827453750,148.9,158.82,158.79,13.92801886]
[1748827453950,148.9,158.82,158.8,13.92801886]
[1748827454821,148.9,158.82,158.79,13.92801886]
[1748827455023,148.9,158.82,158.78,13.92801886]
[1748827456329,148.9,158.82,158.79,6.29762579]
[1748827456832,187.42,158.82,158.79,6.29762579]
[1748827457032,148.9,158.82,158.79,6.29762579]
[1748827457232,148.9,158.82,158.79,20.22564465]
[1748827458225,18.64964886,158.81,158.79,6.29762579]
[1748827458838,18.64964886,158.81,158.77,13.92801886]
[1748827459022,32.57766772,158.81,158.78,6.2979542]
[1748827459935,18.64964886,158.81,158.78,6.2979542]
[1748827460139,18.64964886,158.81,158.78,20.22597306]
[1748827461162,18.64964886,158.81,158.79,13.92801886]
[1748827462139,18.64964886,158.81,158.8,6.29722921]
[1748827463850,148.9,158.82,158.8,6.29722921]
[1748827464026,148.9,158.82,158.8,20.22524807]
[1748827467050,148.9,158.82,158.79,13.92801886]
[1748827470966,18.64964886,158.81,158.79,20.22535619]
[1748827471732,18.64964886,158.81,158.78,6.29786564]
[1748827472749,18.64964886,158.81,158.78,20.2258845]
[1748827473458,187.42,158.82,158.8,13.92801886]
[1748827474046,187.42,158.82,158.79,13.92801886]
[1748827475044,187.42,158.82,158.8,13.92801886]
[1748827475254,206.06964886,158.82,158.81,6.29683269]
[1748827475848,167.54964886,158.82,158.81,6.29683269]
[1748827481540,167.54964886,158.82,158.79,20.22564465]
[1748827482479,206.06964886,158.82,158.79,20.22564465]
[1748827483660,206.06964886,158.82,158.8,13.92801886]
[1748827484567,206.06964886,158.82,158.79,20.22564465]
[1748827487370,18.64964886,158.81,158.78,13.92801886]
[1748827488575,18.64964886,158.81,158.79,6.29762579]
[1748827489573,18.64964886,158.81,158.79,20.22564465]
[1748827496095,18.64964886,158.81,158.77,6.29841909]
[1748827496261,18.64964886,158.81,158.79,13.92801886]
[1748827497179,18.64964886,158.81,158.8,8.92751936]
[1748827497958,148.9,158.82,158.8,8.92751936]
[1748827498161,148.9,158.82,158.81,15.22435205]
[1748827498378,9.98,158.84,158.81,15.22435205]
[1748827498576,9.98,158.84,158.83,8.92751936]
[1748827499160,9.98,158.84,158.81,22.03891442]
[1748827499491,18.64964886,158.81,158.75,15.74715407]
[1748827499672,38.52,158.8,158.75,8.92751936]
[1748827500385,38.52,158.8,158.76,6.29881582]
[1748827500586,38.52,158.8,158.76,15.22633518]
[1748827500794,18.64964886,158.79,158.76,15.22633518]
[1748827501287,18.64964886,158.79,158.77,8.92751936]
[1748827501690,38.52,158.8,158.77,8.92751936]
[1748827502574,18.64964886,158.79,158.76,8.92751936]
[1748827503089,18.64964886,158.79,158.75,41.22662853]
[1748827503292,18.64964886,158.79,158.75,46.25682781]
[1748827506485,18.64964886,158.77,158.74,6.29960942]
[1748827506794,57.16964886,158.77,158.74,6.29960942]
[1748827507298,57.16964886,158.77,158.73,6.29987818]
[1748827507599,71.1273675,158.77,158.72,13.95771864]
[1748827507801,71.1273675,158.77,158.7,26.0]
[1748827508008,18.64964886,158.75,158.7,6.30119722]
[1748827508179,18.64964886,158.75,158.71,13.95771864]
[1748827508503,18.64964886,158.75,158.72,6.30040322]
[1748827509095,18.64964886,158.75,158.71,6.3006759]
[1748827509302,18.64964886,158.75,158.71,20.25839454]
[1748827509794,18.64964886,158.75,158.64,120.8226973]
[1748827509795,24.94890646,158.75,158.65,22.06041433]
[1748827509999,32.6073675,158.73,158.68,13.95771864]
[1748827510185,42.5873675,158.73,158.68,13.95771864]
[1748827510394,42.5873675,158.73,158.68,46.25950416]
[1748827513284,28.62964886,158.73,158.69,13.95771864]
[1748827513507,28.62964886,158.73,158.71,13.95771864]
[1748827513907,9.98,158.73,158.72,13.95771864]
[1748827514092,18.64964886,158.75,158.72,13.95771864]
[1748827514283,18.64964886,158.75,158.74,13.95771864]
[1748827514489,18.64964886,158.75,158.74,20.25732806]
[1748827515585,148.9,158.76,158.74,20.25732806]
[1748827515791,148.9,158.76,158.75,13.95771864]
[1748827517797,148.9,158.76,158.75,20.25693123]
[1748827517998,9.98,158.77,158.75,20.25693123]
[1748827518209,148.9,158.8,158.76,13.95771864]
[1748827518408,167.54964886,158.8,158.79,13.95771864]
[1748827518609,167.54964886,158.8,158.78,13.95771864]
[1748827519902,167.54964886,158.8,158.78,6.29778793]
[1748827520284,18.64964886,158.79,158.76,13.95771864]
[1748827520485,32.6073675,158.79,158.72,26.0]
[1748827520708,18.64964886,158.72,158.64,6.30358043]
[1748827520905,72.0073675,158.72,158.66,15.75635246]
[1748827521096,58.04964886,158.72,158.66,15.75635246]
[1748827521296,58.04964886,158.72,158.66,13.95771864]
[1748827521297,13.95771864,158.71,158.66,13.95771864]
[1748827521513,58.04964886,158.72,158.68,13.95771864]
[1748827521825,72.0073675,158.72,158.67,13.95771864]
[1748827521996,18.64964886,158.7,158.66,6.30267041]
[1748827522196,18.64964886,158.68,158.66,13.95771864]
[1748827522422,18.64964886,158.68,158.65,20.2608379]
[1748827522607,18.64964886,158.68,158.65,6.30311926]
[1748827522914,18.64964886,158.68,158.66,13.95771864]
[1748827523294,18.64964886,158.68,158.66,20.26044663]
[1748827523618,39.42,158.69,158.66,20.26044663]
[1748827524991,39.48,158.7,158.68,13.95771864]
[1748827525195,39.48,158.7,158.66,6.30272799]
[1748827525196,39.48,158.7,158.69,13.95771864]
[1748827525396,32.6073675,158.73,158.69,13.95771864]
[1748827525595,18.64964886,158.71,158.69,13.95771864]
[1748827526102,18.64964886,158.71,158.69,20.25906015]
[1748827526822,18.64964886,158.71,158.68,20.25969075]
[1748827527024,18.64964886,158.71,158.69,13.95771864]
[1748827527197,18.64964886,158.71,158.68,20.25969075]
[1748827527698,18.64964886,158.71,158.69,13.95771864]
[1748827530020,49.88,158.74,158.7,20.25891586]
[1748827530209,10.44,158.74,158.72,13.95771864]
[1748827531024,10.44,158.74,158.71,13.95771864]
[1748827532004,10.44,158.74,158.72,6.30040322]
[1748827532523,10.44,158.74,158.72,20.25812186]
[1748827533706,10.44,158.74,158.71,20.25839731]
[1748827534929,10.44,158.74,158.69,41.75370041]
[1748827534930,10.44,158.74,158.7,6.30119722]
[1748827535225,10.44,158.74,158.71,13.95771864]
[1748827536038,10.44,158.74,158.72,13.95771864]
[1748827536710,29.08964886,158.74,158.73,13.95771864]
[1748827537025,29.08964886,158.74,158.73,20.25772494]
[1748827537231,29.08964886,158.74,158.73,6.3000063]
[1748827539924,10.44,158.74,158.73,20.25772494]
[1748827541233,148.9,158.75,158.73,20.25772494]
[1748827541537,148.9,158.75,158.74,13.95771864]
[1748827542833,148.9,158.75,158.74,20.25732806]
[1748827546721,18.64964886,158.78,158.74,36.00635162]
[1748827546929,39.38,158.78,158.77,13.95771864]
[1748827547231,10.44,158.79,158.77,13.95771864]
[1748827547422,10.44,158.79,158.78,13.95771864]
[1748827548412,10.44,158.79,158.78,20.25574106]
[1748827549017,58.02964886,158.82,158.78,20.25574106]
[1748827549223,58.02964886,158.82,158.79,13.95771864]
[1748827549744,58.00964886,158.82,158.79,13.95771864]
[1748827550535,58.00964886,158.82,158.8,6.29722921]
[1748827552021,18.64964886,158.82,158.8,6.29722921]
[1748827552518,57.96964886,158.82,158.8,6.29722921]
[1748827553046,39.32,158.82,158.8,20.25494785]
[1748827553844,150.5307,158.83,158.8,20.25494785]
[1748827554030,39.3,158.82,158.79,13.95771864]
[1748827554537,39.3,158.82,158.77,6.29841909]
[1748827554538,18.64964886,158.81,158.77,6.29841909]
[1748827554932,18.64964886,158.81,158.77,20.25613773]
[1748827557059,32.6073675,158.81,158.77,20.25613773]
[1748827557414,162.85771864,158.8,158.75,26.0]
[1748827557640,18.64964886,158.78,158.75,13.95771864]
[1748827558017,18.64964886,158.78,158.73,22.05002205]
[1748827558018,32.6073675,158.78,158.73,20.25772494]
[1748827558218,18.64964886,158.76,158.73,6.3000063]
[1748827558440,58.00964886,158.76,158.73,6.3000063]
[1748827558627,71.9673675,158.76,158.73,6.3000063]